bitfinex/quotes_BTCUSD_20251120
["timestamp","ask_amount","ask_price","bid_price","bid_amount"]
[1763651254121,0.22066287,90636.0,90623.0,0.01103472]
[1763651254323,0.22066903,90634.0,90631.0,0.01655711]
[1763651254554,0.00316067,90637.0,90631.0,0.01655711]
[1763651254685,0.00316067,90637.0,90632.0,0.01103363]
[1763651254889,0.00316067,90637.0,90636.0,0.22066287]
[1763651255906,0.00316067,90637.0,90636.0,0.59576536]
[1763651256301,0.00316067,90637.0,90636.0,0.68939132]
[1763651256473,0.00316067,90637.0,90636.0,0.60576536]
[1763651257348,0.02312856,90688.0,90669.0,0.01102912]
[1763651257563,0.0110262,90693.0,90676.0,0.01102827]
[1763651257766,0.22052661,90692.0,90683.0,0.01102742]
[1763651257979,0.0004,90700.0,90689.0,0.01102669]
[1763651258192,0.0004,90700.0,90690.0,0.01102657]
[1763651258417,0.0004,90700.0,90685.0,0.01102718]
[1763651258625,0.0004,90700.0,90680.0,0.323]
[1763651258626,0.0004,90700.0,90695.0,0.01655711]
[1763651258848,0.0004,90700.0,90698.0,0.22051103]
[1763651259059,0.0004,90700.0,90697.0,0.01102572]
[1763651259231,0.0004,90700.0,90698.0,0.22051029]
[1763651260169,0.0004,90700.0,90698.0,0.22051202]
[1763651260378,0.0004,90700.0,90699.0,0.22050959]
[1763651260594,0.0004,90700.0,90695.0,0.01655711]
[1763651261033,0.0004,90700.0,90660.0,0.00999999]
[1763651261034,0.0110256,90698.0,90660.0,0.00999999]
[1763651261237,0.0004,90700.0,90650.0,0.20999999]
[1763651261238,0.0004,90700.0,90695.0,0.01655711]
[1763651261869,0.0004,90700.0,90695.0,0.001]
[1763651261870,0.22051527,90697.0,90695.0,0.001]
[1763651262069,0.22051527,90697.0,90696.0,0.01655711]
[1763651262233,0.24401527,90697.0,90696.0,0.01655711]
[1763651262688,0.22051527,90697.0,90696.0,0.01655711]
[1763651263109,0.22229123,90697.0,90696.0,0.01655711]
[1763651264046,0.00177596,90697.0,90696.0,0.01655711]
[1763651264509,0.22055336,90681.0,90677.0,0.01655711]
[1763651264793,0.01102645,90691.0,90677.0,0.02758526]
[1763651264794,0.01102657,90690.0,90677.0,0.02758526]
[1763651265027,0.01561,90678.0,90663.0,0.01655711]
[1763651265271,0.22058885,90667.0,90663.0,0.02758696]
[1763651265494,0.01561,90675.0,90663.0,0.02758696]
[1763651265706,0.01102827,90676.0,90663.0,0.24818315]
[1763651265920,0.22058345,90669.0,90665.0,0.01102961]
[1763651266155,0.73923426,90720.0,90679.0,0.22055716]
[1763651266398,0.22054314,90686.0,90684.0,0.01655711]
[1763651266640,0.0004,90700.0,90685.0,0.01102718]
[1763651266883,0.22051421,90698.0,90693.0,0.0110262]
[1763651267100,0.22053475,90689.0,90684.0,0.01655711]
[1763651267253,0.22052175,90694.0,90690.0,0.01102657]
[1763651267452,0.22051689,90696.0,90691.0,0.22052666]
[1763651267684,0.22054229,90686.0,90684.0,0.01655711]
[1763651267847,0.01102596,90695.0,90684.0,0.01655711]
[1763651267848,0.44091859,90720.0,90684.0,0.02758441]
[1763651268213,0.0004,90700.0,90698.0,0.23706689]
[1763651269564,0.0004,90700.0,90698.0,0.23806689]
[1763651270171,0.01101989,90745.0,90721.0,0.0110228]
[1763651270384,0.23143021,90742.0,90726.0,0.01102219]
[1763651270607,0.01229,90744.0,90731.0,0.01102159]
[1763651270966,0.01229,90744.0,90722.0,0.323]
[1763651270967,0.01229,90744.0,90737.0,0.01102086]
[1763651271102,0.01229,90744.0,90742.0,0.22040381]
[1763651271302,0.0004,90750.0,90744.0,0.01102001]
[1763651271541,0.22039796,90746.0,90743.0,0.01655711]
[1763651271708,0.2314228,90743.0,90732.0,0.01102146]
[1763651271913,0.22040753,90741.0,90739.0,0.01655711]
[1763651272116,0.01102074,90738.0,90729.0,0.22043481]
[1763651272333,0.01102074,90738.0,90700.0,0.71923428]
[1763651272334,0.23144551,90736.0,90712.0,0.01102389]
[1763651272507,1.84120785,90780.0,90690.0,0.72923427]
[1763651272508,0.01229,90756.0,90737.0,0.01102086]
[1763651272716,0.02039998,90780.0,90748.0,0.22039027]
[1763651272717,0.0275394,90779.0,90748.0,0.22039027]
[1763651272933,0.0004,90780.0,90748.0,0.22039027]
[1763651273162,0.01101576,90779.0,90748.0,0.22039027]
[1763651273394,0.0004,90780.0,90749.0,0.323]
[1763651273595,0.0004,90780.0,90749.0,0.33955711]
[1763651273772,0.0004,90780.0,90749.0,0.34955711]
[1763651273972,1e-08,90750.0,90749.0,0.36664787]
[1763651274181,1e-08,90750.0,90749.0,0.39575089]
[1763651274392,0.0004,90780.0,90749.0,0.39575089]
[1763651274393,0.0004,90780.0,90779.0,0.54331527]
[1763651274807,9e-05,90781.0,90780.0,0.333]
[1763651275025,0.01101006,90826.0,90810.0,0.011012]
[1763651275239,0.01100957,90830.0,90815.0,0.01101139]
[1763651275437,0.01229,90832.0,90829.0,0.01100969]
[1763651275683,0.01229,90840.0,90835.0,0.01100897]
[1763651275882,0.2201596,90844.0,90835.0,0.01100897]
[1763651275883,0.01100788,90844.0,90835.0,0.01100897]
[1763651276170,0.01100776,90845.0,90834.0,0.01100909]
[1763651276171,0.011008,90843.0,90834.0,0.01100909]
[1763651276371,0.01100582,90861.0,90848.0,0.01100739]
[1763651276577,0.0235,90866.0,90852.0,0.01100691]
[1763651276831,0.0235,90866.0,90840.0,0.01655711]
[1763651276832,0.0038,90872.0,90861.0,0.01100582]
[1763651277019,0.0038,90872.0,90855.0,0.22012932]
[1763651277020,0.0235,90901.0,90884.0,0.01100303]
[1763651277207,0.53646361,90910.0,90892.0,0.01100206]
[1763651277208,0.22000798,90906.0,90892.0,0.01100206]
[1763651277347,0.22000798,90906.0,90871.0,0.01100461]
[1763651277575,0.01100243,90889.0,90871.0,0.01100461]
[1763651277810,0.22004755,90890.0,90870.0,0.01100473]
[1763651277811,0.23104406,90892.0,90878.0,0.01100376]
[1763651278016,0.23104406,90892.0,90870.0,0.323]
[1763651278017,0.01229,90871.0,90840.0,0.01655711]
[1763651278216,0.01229,90871.0,90855.0,0.01100654]
[1763651278388,0.01229,90871.0,90861.0,0.01100582]
[1763651278604,0.23093505,90935.0,90901.0,0.23102041]
[1763651278803,0.0235,90906.0,90892.0,0.01100206]
[1763651279003,0.01229,90914.0,90893.0,0.01100194]
[1763651279174,0.0235,90903.0,90891.0,0.22004378]
[1763651279368,0.0235,90903.0,90893.0,0.01100194]
[1763651279593,0.0235,90903.0,90897.0,0.01100146]
[1763651279857,0.0235,90903.0,90895.0,0.0110017]
[1763651280049,0.0235,90903.0,90896.0,0.22003077]
[1763651280258,0.02750214,90902.0,90883.0,0.01100315]
[1763651280493,0.01100364,90879.0,90850.0,0.01100715]
[1763651280677,0.01100364,90879.0,90840.0,0.0265571]
[1763651280678,0.01100388,90877.0,90853.0,0.01100679]
[1763651280894,0.01100691,90852.0,90840.0,0.01655711]
[1763651281121,0.02751758,90851.0,90839.0,0.01100848]
[1763651281297,0.03980758,90851.0,90839.0,0.01100848]
[1763651281526,0.01100751,90847.0,90834.0,0.01655711]
[1763651281754,0.01100836,90840.0,90827.0,0.01100994]
[1763651281968,0.01100836,90840.0,90824.0,0.0110103]
[1763651281969,0.01229,90829.0,90822.0,0.01101054]
[1763651282192,0.01229,90829.0,90825.0,0.01101018]
[1763651282397,0.01229,90829.0,90821.0,0.01101066]
[1763651282616,0.01101054,90822.0,90809.0,0.01101212]
[1763651282845,0.02429,90828.0,90790.0,0.01655711]
[1763651282846,0.02752485,90827.0,90790.0,0.01655711]
[1763651283036,0.02338236,90807.0,90790.0,0.24785959]
[1763651283192,0.02429,90821.0,90804.0,0.24782366]
[1763651283393,0.02429,90850.0,90829.0,0.01100969]
[1763651283594,0.01100751,90847.0,90840.0,0.01100836]
[1763651283824,0.01100776,90845.0,90827.0,0.323]
[1763651284022,0.03852716,90845.0,90833.0,0.01100921]
[1763651284224,0.03852716,90845.0,90832.0,0.22018551]
[1763651284225,0.03974074,90844.0,90841.0,0.01100824]
[1763651284451,0.02429,90844.0,90838.0,0.23118028]
[1763651284656,0.01229,90851.0,90848.0,0.01100739]
[1763651284856,0.0038,90850.0,90848.0,0.01100739]
[1763651285059,0.0038,90849.0,90848.0,0.01100739]
[1763651285270,0.0038,90849.0,90823.0,0.01101042]
[1763651285467,0.02429,90852.0,90844.0,0.01100788]
[1763651285641,0.01100594,90860.0,90849.0,0.01100727]
[1763651285970,0.01100594,90860.0,90832.0,0.01655711]
[1763651285971,0.0038,90859.0,90858.0,0.23112759]
[1763651286206,0.01100618,90858.0,90848.0,0.22014584]
[1763651286330,0.01100667,90854.0,90848.0,0.22014584]
[1763651286525,0.01100715,90850.0,90839.0,0.01100848]
[1763651286736,0.011008,90843.0,90833.0,0.01655711]
[1763651286936,0.011008,90843.0,90806.0,0.02909729]
[1763651286937,0.01237,90839.0,90805.0,0.02909729]
[1763651287223,0.01237,90839.0,90822.0,0.01101054]
[1763651287377,0.01100872,90837.0,90825.0,0.01101018]
[1763651287614,0.01237,90839.0,90835.0,0.01100897]
[1763651287786,0.0038,90838.0,90834.0,0.01100909]
[1763651287992,0.0038,90837.0,90834.0,0.02201818]
[1763651288194,0.22017702,90836.0,90834.0,0.02201818]
[1763651288396,0.23119604,90832.0,90796.0,0.02909729]
[1763651288603,0.03909872,90837.0,90790.0,0.0265571]
[1763651288604,0.01101103,90818.0,90799.0,0.01101333]
[1763651288797,0.01101103,90818.0,90798.0,0.01101345]
[1763651288798,0.2202358,90812.0,90804.0,0.01655711]
[1763651288999,0.2202697,90798.0,90790.0,0.01655711]
[1763651289203,0.01237,90799.0,90798.0,0.22026916]
[1763651289436,0.22025374,90805.0,90796.0,0.23128721]
[1763651289724,0.0110126,90805.0,90798.0,0.01101345]
[1763651289884,0.23125715,90808.0,90804.0,0.001]
[1763651290087,0.22025218,90805.0,90804.0,0.001]
[1763651290399,0.22025218,90805.0,90779.0,0.01655711]
[1763651290400,0.29234798,90805.0,90779.0,0.01655711]
[1763651290609,0.01237,90809.0,90780.0,0.01655711]
[1763651290610,0.01101527,90783.0,90780.0,0.01655711]
[1763651290806,0.0038,90782.0,90781.0,0.01101552]
[1763651291253,0.02429,90795.0,90790.0,0.01101442]
[1763651291448,0.02429,90795.0,90788.0,0.03304401]
[1763651291449,0.2240791,90794.0,90788.0,0.03304401]
[1763651291653,0.011012,90810.0,90795.0,0.01101382]
[1763651291882,0.0038,90793.0,90792.0,0.02202837]
[1763651292076,0.0038,90793.0,90775.0,0.01101624]
[1763651292269,0.01237,90781.0,90767.0,0.01101721]
[1763651292474,0.23134134,90775.0,90767.0,0.01101721]
[1763651292644,0.01237,90781.0,90778.0,0.23133196]
[1763651292844,0.02338467,90788.0,90779.0,0.01595231]
[1763651293065,0.02338467,90788.0,90779.0,0.02696807]
[1763651293264,0.01237,90788.0,90784.0,0.01101515]
[1763651293466,0.01237,90788.0,90779.0,0.02757287]
[1763651293467,0.22025883,90803.0,90792.0,0.01101418]
[1763651293832,0.0353026,90805.0,90799.0,0.23127875]
[1763651293833,0.0038,90802.0,90799.0,0.23127875]
[1763651294003,0.0038,90801.0,90800.0,0.01149774]
[1763651294232,0.03910309,90801.0,90780.0,0.01101564]
[1763651294418,0.01101491,90786.0,90769.0,0.02909729]
[1763651294615,0.02429,90800.0,90773.0,0.01101649]
[1763651294814,0.01101382,90795.0,90784.0,0.01101515]
[1763651295086,0.22030279,90785.0,90783.0,0.01150517]
[1763651295272,0.01101418,90792.0,90783.0,0.01150517]
[1763651295273,0.01101442,90790.0,90783.0,0.01150517]
[1763651295479,0.02809,90794.0,90773.0,0.0225231]
[1763651295480,0.01101527,90783.0,90773.0,0.0225231]
[1763651295683,0.01101588,90778.0,90773.0,0.01150661]
[1763651295906,0.01101552,90781.0,90769.0,0.01655711]
[1763651295907,0.01237,90774.0,90769.0,0.01655711]
[1763651296159,0.0038,90773.0,90770.0,0.02253303]
[1763651296420,0.0038,90773.0,90771.0,0.22033284]
[1763651296606,0.0038,90773.0,90772.0,0.01151497]
[1763651296821,0.01727306,90826.0,90779.0,0.01101576]
[1763651297011,0.01727306,90826.0,90770.0,0.01101685]
[1763651297012,0.01237,90796.0,90790.0,0.01101442]
[1763651297213,0.01237,90796.0,90794.0,0.22027809]
[1763651297419,0.01237,90802.0,90801.0,0.22026189]
[1763651297569,0.22027135,90798.0,90783.0,0.01655711]
[1763651297770,0.02364414,90797.0,90778.0,0.02928463]
[1763651297980,0.02429,90801.0,90783.0,0.01655711]
[1763651297981,0.0110143,90791.0,90783.0,0.01655711]
[1763651298174,0.22029885,90786.0,90783.0,0.01655711]
[1763651298374,0.22030289,90785.0,90783.0,0.01655711]
[1763651298576,0.22030062,90786.0,90784.0,0.323]
[1763651298780,0.02429,90797.0,90784.0,0.323]
[1763651299094,0.02429,90797.0,90787.0,0.01101479]
[1763651299298,0.03405099,90809.0,90796.0,0.0110137]
[1763651299299,0.0048192,90800.0,90796.0,0.0110137]
[1763651299507,0.01237,90809.0,90808.0,0.22024491]
[1763651299723,0.01237,90851.0,90838.0,0.0110086]
[1763651299922,0.22016509,90841.0,90839.0,0.01655711]
[1763651300128,0.02809,90850.0,90833.0,0.22018274]
[1763651300409,0.22016218,90843.0,90833.0,0.22018429]
[1763651300642,0.02809,90850.0,90835.0,0.22017828]
[1763651300864,0.0038,90843.0,90842.0,0.23116947]
[1763651301093,0.24443411,90850.0,90842.0,0.23116947]
[1763651301094,0.0038,90850.0,90849.0,0.01655711]
[1763651301322,0.01100557,90863.0,90849.0,0.01655711]
[1763651301323,0.01237,90872.0,90860.0,0.01100594]
[1763651301553,0.01237,90872.0,90870.0,0.01655711]
[1763651301785,0.22008668,90874.0,90870.0,0.04596968]
[1763651302004,0.0038,90876.0,90873.0,0.02940477]
[1763651302260,0.0038,90876.0,90874.0,0.2494878]
[1763651302471,0.22006672,90882.0,90873.0,0.01100436]
[1763651302472,0.22006573,90882.0,90873.0,0.01100436]
[1763651302770,0.02337255,90888.0,90873.0,0.01100436]
[1763651302771,0.01237,90888.0,90878.0,0.01100376]
[1763651303007,0.02429,90910.0,90898.0,0.01100134]
[1763651303225,0.0038,90899.0,90898.0,0.02941935]
[1763651303430,0.0038,90899.0,90896.0,0.23103326]
[1763651303645,0.21999139,90913.0,90901.0,0.01100097]
[1763651303858,0.0038,90908.0,90901.0,0.0403985]
[1763651304112,0.0038,90908.0,90903.0,0.01655711]
[1763651304364,0.43982343,90946.0,90903.0,0.01655711]
[1763651304365,0.21993385,90937.0,90903.0,0.40775328]
[1763651304558,0.01099783,90927.0,90903.0,0.38628271]
[1763651304797,0.0042,90930.0,90903.0,0.34955711]
[1763651305008,0.0004,90930.0,90927.0,0.01099783]
[1763651305216,0.0004,90930.0,90929.0,0.01655711]
[1763651305635,0.00905035,90930.0,90929.0,0.55950894]
[1763651306056,0.00905035,90930.0,90929.0,0.33955711]
[1763651306272,0.22899976,90930.0,90929.0,0.01655711]
[1763651306502,0.22899976,90930.0,90903.0,0.01655711]
[1763651306503,0.03334035,90930.0,90914.0,0.323]
[1763651306702,0.00905035,90930.0,90923.0,0.01655711]
[1763651306856,0.0004,90930.0,90923.0,0.01655711]
[1763651307059,0.21996376,90925.0,90923.0,0.01655711]
[1763651307406,0.22035424,90930.0,90923.0,0.01655711]
[1763651307603,0.01099783,90927.0,90924.0,0.01655711]
[1763651307819,0.0004,90930.0,90927.0,0.01099783]
[1763651308256,0.0004,90930.0,90926.0,0.323]
[1763651308809,0.0004,90930.0,90928.0,0.54295216]
[1763651309068,0.0004,90930.0,90929.0,0.323]
[1763651309813,0.0004,90930.0,90929.0,0.54295183]
[1763651310815,0.0004,90930.0,90929.0,0.57222902]
[1763651311021,0.0004,90930.0,90929.0,0.54295183]
[1763651311342,0.0004,90930.0,90929.0,0.54395183]
[1763651312030,0.0004,90930.0,90929.0,0.55295183]
[1763651312368,0.0004,90930.0,90929.0,0.55395183]
[1763651312605,0.5,90950.0,90949.0,0.323]
[1763651312844,0.5,90950.0,90949.0,0.54290346]
[1763651313084,0.21991266,90946.0,90930.0,0.01099747]
[1763651313289,0.50923879,90950.0,90949.0,0.0219953]
[1763651313502,0.72913983,90950.0,90949.0,0.0219953]
[1763651313710,0.72913983,90950.0,90934.0,0.01099698]
[1763651313711,0.21991618,90944.0,90942.0,0.0219953]
[1763651313915,0.01099589,90943.0,90941.0,0.0219953]
[1763651314126,0.21991555,90944.0,90941.0,0.0219953]
[1763651314318,0.02439,90949.0,90941.0,0.03299144]
[1763651314520,0.5,90950.0,90947.0,0.01099541]
[1763651314725,0.5,90950.0,90938.0,0.23092573]
[1763651314726,0.21991794,90944.0,90942.0,0.0219953]
[1763651315087,0.01099626,90940.0,90920.0,0.01099868]
[1763651315297,0.23092644,90939.0,90938.0,0.0219953]
[1763651315540,0.21995985,90926.0,90909.0,0.01100001]
[1763651315735,0.01099771,90928.0,90887.0,0.01655711]
[1763651315736,0.21995636,90928.0,90922.0,0.01099843]
[1763651315938,0.01479747,90930.0,90905.0,0.01100049]
[1763651316139,0.01099759,90929.0,90922.0,0.01099843]
[1763651316436,0.23092877,90938.0,90932.0,0.01099722]
[1763651316651,0.01479662,90937.0,90924.0,0.0285553]
[1763651316825,0.01479662,90937.0,90925.0,0.01099807]
[1763651316826,0.21995068,90930.0,90925.0,0.01099807]
[1763651317208,0.21995241,90929.0,90924.0,0.0285553]
[1763651317440,0.21993973,90934.0,90931.0,0.01099734]
[1763651317650,0.43975053,90961.0,90938.0,0.0109965]
[1763651317651,0.01246,90944.0,90938.0,0.0109965]
[1763651317870,0.01246,90944.0,90939.0,0.0219953]
[1763651317871,0.21992522,90940.0,90939.0,0.0219953]
[1763651318085,0.21992522,90940.0,90924.0,0.01755711]
[1763651318086,0.04065,90944.0,90938.0,0.0219953]
[1763651318311,0.01626,90944.0,90941.0,0.01099614]
[1763651318522,0.01246,90955.0,90947.0,0.01099541]
[1763651318724,0.01099553,90946.0,90938.0,0.0329918]
[1763651318896,0.21990896,90947.0,90943.0,0.01099589]
[1763651319194,0.21990896,90947.0,90944.0,0.01099577]
[1763651319396,0.71990288,90950.0,90944.0,0.01099577]
[1763651319397,0.5,90950.0,90946.0,0.01099553]
[1763651319612,0.5,90950.0,90948.0,0.2199041]
[1763651320069,0.00920937,90949.0,90948.0,0.2199041]
[1763651320293,0.00920937,90949.0,90948.0,0.5429041]
[1763651321216,0.00920937,90949.0,90948.0,0.323]
[1763651321421,0.21992109,90942.0,90938.0,0.0219953]
[1763651321666,0.21992638,90940.0,90938.0,0.0219953]
[1763651321943,0.21992638,90940.0,90924.0,0.01655711]
[1763651321944,0.00891518,90939.0,90924.0,0.01655711]
[1763651322230,0.01246,90925.0,90924.0,0.01655711]
[1763651322433,0.0038,90935.0,90933.0,0.23093839]
[1763651322646,0.0038,90935.0,90924.0,0.02797963]
[1763651322647,0.21996099,90926.0,90924.0,0.01655711]
[1763651322851,0.21998251,90917.0,90904.0,0.23101085]
[1763651323060,0.02439,90934.0,90919.0,0.0109988]
[1763651323321,0.01099601,90942.0,90934.0,0.0219953]
[1763651323525,0.01099601,90942.0,90924.0,0.001]
[1763651323526,0.21994255,90933.0,90928.0,0.01099771]
[1763651323750,0.0038,90938.0,90932.0,0.0219953]
[1763651323969,0.21993911,90935.0,90932.0,0.0219953]
[1763651324175,0.21993599,90936.0,90932.0,0.25293632]
[1763651324398,1.11954774,90980.0,90933.0,0.24235413]
[1763651324399,0.21992624,90940.0,90933.0,0.24235413]
[1763651324631,0.21992624,90940.0,90934.0,0.01141564]
[1763651324632,0.21993533,90936.0,90934.0,0.01141564]
[1763651324855,0.21994215,90933.0,90932.0,0.0219953]
[1763651325112,0.2199732,90921.0,90912.0,0.01099964]
[1763651325323,0.01099722,90932.0,90906.0,0.0291448]
[1763651325324,0.02439,90934.0,90922.0,0.21996822]
[1763651325585,0.21997563,90920.0,90908.0,0.0291448]
[1763651325793,0.01099868,90920.0,90910.0,0.323]
[1763651326011,1.0995241,90949.0,90903.0,0.01655711]
[1763651326012,0.01099928,90915.0,90903.0,0.01655711]
[1763651326216,0.01099928,90915.0,90895.0,0.03914872]
[1763651326217,0.22001474,90903.0,90901.0,0.0219953]
[1763651326426,0.2324734,90904.0,90902.0,0.0219953]
[1763651326624,0.2324734,90904.0,90902.0,0.24201166]
[1763651326625,0.01246,90904.0,90902.0,0.24201166]
[1763651326766,0.01099904,90917.0,90906.0,0.01100037]
[1763651326967,0.0038,90916.0,90910.0,0.01099989]
[1763651327169,0.01099952,90913.0,90910.0,0.01142991]
[1763651327370,0.22001251,90904.0,90899.0,0.04014602]
[1763651327600,0.22001474,90903.0,90898.0,0.0291448]
[1763651327802,0.22001063,90905.0,90899.0,0.01100122]
[1763651328003,0.22001063,90905.0,90901.0,0.01100097]
[1763651328219,0.01246,90907.0,90902.0,0.01843077]
[1763651328432,0.2200134,90904.0,90902.0,0.0069953]
[1763651328780,0.2310536,90888.0,90876.0,0.03914872]
[1763651328941,0.01100315,90883.0,90868.0,0.22009837]
[1763651329142,0.22009362,90871.0,90869.0,0.03914872]
[1763651329359,0.22008378,90875.0,90870.0,0.05872308]
[1763651329549,0.22008378,90875.0,90868.0,0.05872308]
[1763651329550,0.23109835,90871.0,90868.0,0.05872308]
[1763651329732,0.02439,90875.0,90870.0,0.03927433]
[1763651330103,0.2201019,90867.0,90866.0,0.03927433]
[1763651330324,0.22011886,90860.0,90857.0,0.03927433]
[1763651330536,0.22013715,90853.0,90850.0,0.07272939]
[1763651330740,0.22014551,90849.0,90848.0,0.03927433]
[1763651330955,0.22015278,90846.0,90844.0,0.03927433]
[1763651331156,0.22015278,90846.0,90833.0,0.01655711]
[1763651331157,0.22015763,90844.0,90842.0,0.03927433]
[1763651331290,0.01480776,90845.0,90842.0,0.03927433]
[1763651331291,0.0038,90845.0,90842.0,0.03927433]
[1763651331509,0.22015919,90844.0,90842.0,0.03927433]
[1763651331708,0.22016247,90842.0,90841.0,0.03927433]
[1763651331943,0.25555707,90844.0,90837.0,0.03927433]
[1763651331944,0.22016975,90839.0,90837.0,0.03927433]
[1763651332149,0.22016975,90839.0,90831.0,0.05872308]
[1763651332150,0.02439,90843.0,90836.0,0.03927433]
[1763651332331,0.0038,90842.0,90838.0,0.0219953]
[1763651332760,0.22016975,90839.0,90838.0,0.0219953]
[1763651332961,0.02439,90841.0,90837.0,0.01100872]
[1763651333242,0.02439,90841.0,90833.0,0.0219953]
[1763651333243,0.23118587,90836.0,90833.0,0.0219953]
[1763651333387,0.01100933,90832.0,90819.0,0.05583144]
[1763651333583,0.0038,90840.0,90831.0,0.22018695]
[1763651333788,0.0038,90840.0,90830.0,0.01100957]
[1763651333789,0.01100872,90837.0,90834.0,0.0219953]
[1763651334026,0.22017728,90836.0,90830.0,0.01100957]
[1763651334227,0.0038,90840.0,90833.0,0.03300451]
[1763651334438,0.02439,90849.0,90840.0,0.22016501]
[1763651334799,0.01100848,90839.0,90827.0,0.22019871]
[1763651335012,0.23118033,90839.0,90836.0,0.0219953]
[1763651335384,0.24456217,90838.0,90836.0,0.0219953]
[1763651335763,0.22016244,90843.0,90836.0,0.0219953]
[1763651335963,0.0038,90848.0,90836.0,0.2421701]
[1763651336286,0.01100848,90839.0,90829.0,0.01100969]
[1763651336519,0.01100848,90839.0,90821.0,0.22021101]
[1763651336520,0.22019131,90831.0,90828.0,0.01100982]
[1763651336727,0.01246,90822.0,90820.0,0.2202135]
[1763651336951,0.02439,90838.0,90835.0,0.01100897]
[1763651337144,0.01246,90840.0,90821.0,0.01101066]
[1763651337145,0.22019777,90828.0,90821.0,0.01101066]
[1763651337284,0.01101006,90826.0,90819.0,0.01655711]
[1763651337482,0.22021577,90821.0,90819.0,0.01655711]
[1763651337836,0.0038,90826.0,90824.0,0.22020491]
[1763651338040,0.0038,90826.0,90825.0,0.01148282]
[1763651338634,0.02439,90837.0,90831.0,0.01100945]
[1763651338846,0.0038,90837.0,90832.0,0.01100933]
[1763651338992,0.01100909,90834.0,90825.0,0.01101018]
[1763651339189,0.01100885,90836.0,90830.0,0.01100957]
[1763651339414,0.22018479,90833.0,90828.0,0.01100982]
[1763651339611,0.22018164,90835.0,90829.0,0.02248962]
[1763651339813,0.22018914,90832.0,90828.0,0.01100982]
[1763651340024,0.22019641,90828.0,90820.0,0.01101079]
[1763651340218,0.0038,90837.0,90824.0,0.0110103]
[1763651340423,0.22020023,90827.0,90823.0,0.01101042]
[1763651340758,0.02439,90836.0,90823.0,0.01101042]
[1763651340989,0.01999998,90870.0,90792.0,0.03927433]
[1763651340990,0.01101285,90803.0,90792.0,0.03927433]
[1763651341184,0.01101285,90803.0,90775.0,0.07829745]
[1763651341185,0.05210249,90770.0,90762.0,0.07829745]
[1763651341420,0.05210249,90770.0,90710.0,0.00999999]
[1763651341421,0.01246,90759.0,90734.0,0.01102122]
[1763651341602,0.01246,90759.0,90710.0,0.00999999]
[1763651341603,0.01246,90759.0,90747.0,0.01101964]
[1763651341808,0.01246,90759.0,90752.0,0.22038048]
[1763651342037,0.01246,90768.0,90766.0,0.01101734]
[1763651342207,0.22027854,90795.0,90782.0,0.01101539]
[1763651342458,0.01626,90793.0,90785.0,0.01652028]
[1763651342606,0.22028857,90790.0,90785.0,0.01652028]
[1763651342808,0.24479418,90792.0,90785.0,0.01652028]
[1763651342989,0.22029365,90788.0,90785.0,0.01652028]
[1763651343190,0.01626,90793.0,90779.0,0.01101576]
[1763651343191,0.01101455,90789.0,90779.0,0.01101576]
[1763651343556,0.01101455,90789.0,90766.0,0.22034622]
[1763651343557,0.01101612,90776.0,90756.0,0.01101855]
[1763651343768,0.01101612,90776.0,90732.0,0.33064082]
[1763651343769,0.01101734,90766.0,90754.0,0.01652028]
[1763651343968,0.01101673,90771.0,90754.0,0.01652028]
[1763651344183,0.01101709,90768.0,90755.0,0.01652028]
[1763651344403,0.02451,90771.0,90763.0,0.22035169]
[1763651344611,0.22034188,90769.0,90764.0,0.01151838]
[1763651344838,0.22034694,90766.0,90759.0,0.01101819]
[1763651345035,0.2241395,90770.0,90766.0,0.01101734]
[1763651345272,0.01233569,90769.0,90755.0,0.01101867]
[1763651345485,0.01233569,90769.0,90762.0,0.01101782]
[1763651345486,0.23135651,90769.0,90762.0,0.01101782]
[1763651345717,0.001,90771.0,90763.0,0.0110177]
[1763651345939,0.001,90771.0,90770.0,0.54333711]
[1763651346189,0.01247,90797.0,90789.0,0.01101455]
[1763651346408,0.22028314,90793.0,90790.0,0.01150261]
[1763651346627,0.22028314,90793.0,90776.0,0.323]
[1763651346628,0.22030313,90784.0,90771.0,0.01101673]
[1763651346837,0.02451,90792.0,90752.0,0.33057111]
[1763651346838,0.02451,90792.0,90780.0,0.01101564]
[1763651347078,0.01247,90797.0,90794.0,0.01101394]
[1763651347274,0.22023995,90811.0,90804.0,0.01101273]
[1763651347474,0.00327957,90791.0,90771.0,0.323]
[1763651347685,0.00327957,90791.0,90789.0,0.220291]
[1763651347898,0.00327957,90791.0,90790.0,0.323]
[1763651348551,0.00327957,90791.0,90789.0,0.220291]
[1763651348962,0.00327957,90791.0,90790.0,0.34450405]
[1763651349173,0.02451,90835.0,90832.0,0.01100933]
[1763651349379,0.22016574,90841.0,90834.0,0.01652028]
[1763651349596,0.02451,90847.0,90844.0,0.01100788]
[1763651349801,0.03551606,90859.0,90844.0,0.01100788]
[1763651350089,0.03551606,90859.0,90813.0,0.76346263]
[1763651350090,0.22017955,90835.0,90830.0,0.01100957]
[1763651350318,0.22017459,90837.0,90834.0,0.01652028]
[1763651350529,0.01100788,90844.0,90834.0,0.01652028]
[1763651350530,0.24466744,90845.0,90834.0,0.01652028]
[1763651350729,0.22019965,90827.0,90819.0,0.01101091]
[1763651350932,0.01101006,90826.0,90819.0,0.01101091]
[1763651351144,0.01247,90827.0,90824.0,0.0110103]
[1763651351377,0.02030117,90833.0,90823.0,0.01101042]
[1763651351562,0.02030117,90833.0,90819.0,0.01101091]
[1763651351563,0.01100982,90828.0,90821.0,0.01101066]
[1763651351790,0.01247,90823.0,90821.0,0.22021338]
[1763651352000,0.25567495,90845.0,90833.0,0.01100921]
[1763651352239,0.01100812,90842.0,90790.0,0.00999999]
[1763651352457,0.22020611,90824.0,90814.0,0.01101151]
[1763651352679,0.22020559,90825.0,90819.0,0.01101091]
[1763651352911,0.02831,90836.0,90827.0,0.23120668]
[1763651353120,0.22019641,90828.0,90824.0,0.01652028]
[1763651353355,0.22021864,90819.0,90809.0,0.22024142]
[1763651353574,0.22021864,90819.0,90797.0,0.22027093]
[1763651353575,0.22021338,90823.0,90819.0,0.01101091]
[1763651353805,0.22019586,90829.0,90822.0,0.22020936]
[1763651354039,0.22019586,90829.0,90818.0,0.01652028]
[1763651354040,0.01101224,90808.0,90780.0,0.00999999]
[1763651354240,0.03854285,90808.0,90796.0,0.01652028]
[1763651354445,0.02753061,90808.0,90796.0,0.02753398]
[1763651354562,0.02033249,90809.0,90803.0,0.01101285]
[1763651354766,0.22025915,90803.0,90801.0,0.01149497]
[1763651354976,0.22025915,90803.0,90796.0,0.01652028]
[1763651354977,0.23274159,90797.0,90796.0,0.01652028]
[1763651355228,0.01247,90797.0,90796.0,0.01652028]
[1763651355809,0.01101297,90802.0,90796.0,0.01652028]
[1763651355810,0.01247,90806.0,90797.0,0.01101357]